Cogmind - Beta 13 @@@ ROGUE MODE // 2024.04.05 @ 16:41:03 Player: Olafz Result: Destroyed by G-34 Mercenary with Small Laser Performance ------------- Evolutions (1) 500 Regions Visited (3) 600 Robots Destroyed (31) 155 Value Destroyed (609) 609 Prototype IDs (2) 40 Alien Tech Used (0) 0 Bonus (0) 0 TOTAL SCORE: 1904 Bonus ------- None Cogmind --------- Core Integrity 0/400 Matter 300/300 Energy 211/250 System Corruption 5% Temperature Cool (6) Movement Walking (120) Location -9/Materials Parts ------- > --- POWER (1) -------- Ion Engine > --- PROPULSION (2) --- Aluminum Leg Aluminum Leg > --- UTILITY (4) ------ System Shield > --- WEAPON (2) ------- Great Maul Katana > --- INVENTORY (5) ---- Improved Datajack Improved Datajack Improved Datajack Great Maul Great Maul Peak State ------------ > --- POWER ------------ Light Ion Engine > --- PROPULSION ------- Aluminum Leg Aluminum Leg > --- UTILITY ---------- Small Storage Unit System Shield Tractor Beam > --- WEAPON ----------- Improved Datajack Great Maul > --- INVENTORY -------- Ion Engine Ion Engine Light Ion Engine Aluminum Leg Aluminum Leg System Shield Light Assault Rifle Great Maul [Rating: 15] Favorites ----------- Power Light Ion Engine Engine Light Ion Engine Propulsion Aluminum Leg Treads Light Treads Leg Aluminum Leg Utility System Shield Device Improved Terrain Scanner Storage Small Storage Unit Hackware System Shield Weapon Great Maul Ballistic Gun Light Assault Rifle Impact Weapon Great Maul Slashing Weapon Katana Special Melee Weapon Improved Datajack Build | -11 -10 -10 -9 ------- Run | Yrd Mat Min Mat Slots Evolved 2 | . . . 2 Power . | . . . . Propulsion . | . . . . Utility 2 | . . . 2 Weapon . | . . . . Parts Attached 28 | 6 3 2 17 Power 6 | 1 1 1 3 Engine 6 | 1 1 1 3 Core . | . . . . Reactor . | . . . . Propulsion 9 | 2 2 . 5 Treads 1 | . . . 1 Leg 8 | 2 2 . 4 Wheel . | . . . . Hover . | . . . . Flight . | . . . . Utility 7 | 2 . 1 4 Device 2 | 1 . 1 . Storage 1 | 1 . . . Processor . | . . . . Hackware 4 | . . . 4 Protection . | . . . . Artifact . | . . . . Weapon 6 | 1 . . 5 Energy Gun . | . . . . Energy Cannon . | . . . . Ballistic Gun 1 | 1 . . . Ballistic Cannon . | . . . . Launcher . | . . . . Special Weapon . | . . . . Impact Weapon 3 | . . . 3 Slashing Weapon 1 | . . . 1 Piercing Weapon . | . . . . Special Melee Weapon 1 | . . . 1 Unidentified Prototypes . | . . . . Parts Lost 15 | . 1 . 14 Power 3 | . . . 3 Propulsion 5 | . . . 5 Utility 6 | . 1 . 5 Weapon 1 | . . . 1 Highest Loss Streak 9 | . 1 . 9 To Critical Strikes . | . . . . Average Slot Usage (%) 66 | . 78 78 62 Engine 6 | . 14 14 4 Leg 19 | . 28 28 16 Device 3 | . 7 7 1 Storage 6 | . 14 14 3 Hackware 10 | . . . 14 Ballistic Gun 4 | . 14 14 . Impact Weapon 13 | . . . 19 Naked Turns . | . . . . Heaviest Build 18 | 10 11 12 18 Greatest Support 20 | 20 20 20 20 Greatest Overweight (x) 5 | . . . 5 Average Overweight (x) . | . . . . Largest Inventory Capacity 8 | 8 8 8 8 Average Capacity 6 | 7 8 8 6 Most Carried 8 | 1 4 5 8 Average Carried 3 | . 1 4 4 Final Capacity 8 | 8 8 8 5 Final Carried 5 | 1 4 5 5 Class Distribution -------------------- 66% | Mutant 33% | Hacker-Mutant Dominant Class ---------------- Mutant | -10/Materials Mutant | -10/Mines Hacker-Mutant | -9/Materials Resources | -11 -10 -10 -9 ----------- Run | Yrd Mat Min Mat Matter Collected 589 | 219 49 127 194 Remotely 157 | . . 116 41 Salvage Created 1052 | 176 92 106 678 Parts 39 | 13 4 7 15 Haulers Intercepted 1 | . . . 1 Recyclers Shooed 1 | . . 1 . Parts Field Recycled . | . . . . Retrieved Matter . | . . . . Parts Self-Destructed . | . . . . Prevented . | . . . . Kills | -11 -10 -10 -9 ------- Run | Yrd Mat Min Mat Combat Hostiles Destroyed 16 | . 2 3 11 Melee 4 | . . . 4 Guns 5 | . 2 3 . Classes Destroyed 9 | 3 1 1 4 Worker 4 | 2 . . 2 Builder 3 | . . . 3 Tunneler 4 | 3 . . 1 Hauler 1 | . . . 1 Recycler 3 | 1 . 1 1 Swarmer 3 | . . 3 . Grunt 8 | . 2 . 6 Duelist 1 | . . . 1 Sentry 4 | . . . 4 Best Kill Streak 5 | 2 1 2 5 Combat Bots Only 3 | . 1 2 3 Max Kills in Single Turn 1 | 1 1 1 1 Gunslinging . | . . . . Exploded . | . . . . Melee 1 | . . . 1 Uniques/NPCs Destroyed . | . . . . Combat | -11 -10 -10 -9 -------- Run | Yrd Mat Min Mat Hostile Shots Fired 226 | . 25 34 167 Missed 66 | . 8 10 48 Damage Taken 2051 | . 253 205 1593 Core 522 | . 54 67 401 Absorbed by Shields . | . . . . Core Remaining (%) 75 | 100 . 51 . Volleys Fired 125 | 77 25 23 . Largest 1 | 1 1 1 . Hottest 20 | 20 20 20 . Shots Fired 125 | 77 25 23 . Gun 125 | 77 25 23 . Cannon . | . . . . Launcher . | . . . . Special . | . . . . Kinetic 125 | 77 25 23 . Thermal . | . . . . Explosive . | . . . . Electromagnetic . | . . . . Robot Hit Streak 7 | 7 5 3 . Robot Miss Streak 4 | 3 3 4 . Penetration Max . | . . . . Secondary Targets . | . . . . Shots Hit Robots 103 | 43 16 10 34 Core Hits 27 | 13 7 5 2 Critical Kills . | . . . . Critical Parts Destroyed 10 | . . . 10 Critical Strikes 11 | . . . 11 Smash 10 | . . . 10 Sever 1 | . . . 1 Melee Attacks 49 | . . . 49 Impact 45 | . . . 45 Slashing 4 | . . . 4 Piercing . | . . . . Sneak Attacks 8 | . . . 8 Combat Hostiles . | . . . . Follow-up Attacks 5 | . . . 5 Damage Inflicted 2405 | 323 127 84 1871 Guns 531 | 323 127 81 . Cannons . | . . . . Explosions . | . . . . Melee 1870 | . . . 1870 Ramming 4 | . . 3 1 Kinetic 531 | 323 127 81 . Thermal . | . . . . Explosive . | . . . . Electromagnetic . | . . . . Impact 1779 | . . . 1779 Slashing 91 | . . . 91 Piercing . | . . . . Highest Corruption 5 | . . . 5 Average Corruption 5 | . . . 5 Corruption Purged . | . . . . Corruption Blocked . | . . . . Effects 18 | . . . 18 Message Errors 4 | . . . 4 Matter Fused 5 | . . . 5 Heat Flow Errors 3 | . . . 3 Energy Discharges 3 | . . . 3 Data Loss (minor) 1 | . . . 1 Data Loss (major) 1 | . . . 1 Alerts 1 | . . . 1 Overload Shots . | . . . . Overflow Damage 946 | . . . 946 Projectiles . | . . . . Explosions . | . . . . Melee 946 | . . . 946 Knockbacks 5 | . . . 5 Impact 5 | . . . 5 Kinetic . | . . . . Secondary . | . . . . Self-Inflicted Damage . | . . . . Shots . | . . . . Rammed . | . . . . Targets Rammed 3 | . . 2 1 Kicked 3 | . . 2 1 Crushed . | . . . . Highest Temperature 252 | . 15 . 252 Average Temperature 74 | . 8 . 108 Received Heat Transfer 816 | . 165 . 651 Siege Activations . | . . . . Robots Corrupted . | . . . . Combat Hostiles . | . . . . Parts Fried 20 | . . . 20 Impact Corruptions 30 | . . . 30 Robots Melted . | . . . . Combat Hostiles . | . . . . Parts Melted . | . . . . Heat Transferred . | . . . . Parts Sabotaged . | . . . . Parts Stolen . | . . . . Parts Stripped . | . . . . Power Chain Reactions . | . . . . Alert | -11 -10 -10 -9 ------- Run | Yrd Mat Min Mat Peak Influence 201 | 30 74 103 201 Initial 39 | . 19 28 39 Average 42 | 11 45 76 48 Maximum Alert Level 1 | . . . 1 Low Security (%) 99 | 100 100 100 98 Level 1 . | . . . 1 Level 2 . | . . . . Level 3 . | . . . . Level 4 . | . . . . Level 5 . | . . . . High Security . | . . . . Max Security . | . . . . Squads Dispatched 4 | . 2 . 2 Investigation 2 | . 1 . 1 Extermination . | . . . . Reinforcement 2 | . 1 . 1 Assault . | . . . . Garrison . | . . . . Intercept . | . . . . Searches Triggered . | . . . . Construction Impeded . | . . . . Haulers Reinforced . | . . . . Active Scanning Responses . | . . . . Cargo Convoy Interrupts . | . . . . Stealth | -11 -10 -10 -9 --------- Run | Yrd Mat Min Mat Distress Signals . | . . . . Communications Jammed . | . . . . Distress Signals . | . . . . Times Spotted 22 | . 3 3 16 Peak Tracking Total 6 | . 2 3 6 Tactical Retreats . | . . . . Traps | -11 -10 -10 -9 ------- Run | Yrd Mat Min Mat Traps Triggered . | . . . . Indirectly . | . . . . Trap Hack Attempts . | . . . . Triggered . | . . . . Disarmed . | . . . . Reprogrammed . | . . . . Reused . | . . . . Traps Extracted . | . . . . Installed . | . . . . Triggered . | . . . . Machines | -11 -10 -10 -9 ---------- Run | Yrd Mat Min Mat Machines Disabled . | . . . . Max in Single Turn . | . . . . Machines Repaired . | . . . . Machines Dismantled . | . . . . Machines Sabotaged . | . . . . Overloaded Fab Kills . | . . . . Hacking | -11 -10 -10 -9 --------- Run | Yrd Mat Min Mat Machines Accessed 4 | . 1 1 2 Terminals 4 | . 1 1 2 Fabricators . | . . . . Repair Stations . | . . . . Recycling Units . | . . . . Scanalyzers . | . . . . Garrison Access . | . . . . Total Hacks 12 | . 3 2 7 Successful 1 | . . . 1 Failed 11 | . 3 2 6 Catastrophic 6 | . 1 1 4 Database Lockouts . | . . . . Manual 11 | . 3 2 6 Terminals 12 | . 3 2 7 Fabricators . | . . . . Repair Stations . | . . . . Recycling Units . | . . . . Scanalyzers . | . . . . Garrison Access . | . . . . Terminal Hacks 1 | . . . 1 Prototype ID Bank 1 | . . . 1 Fabricator Hacks . | . . . . Repair Station Hacks . | . . . . Recycling Unit Hacks . | . . . . Scanalyzer . | . . . . Garrison Access Hacks . | . . . . Unauthorized Hacks . | . . . . Terminals . | . . . . Fabricators . | . . . . Repair Stations . | . . . . Recycling Units . | . . . . Scanalyzers . | . . . . Garrison Access . | . . . . Data Cores Recovered . | . . . . Used . | . . . . Hacking Detections 4 | . 1 1 2 Full Trace Events 4 | . 1 1 2 Feedback Events . | . . . . Feedback Blocked . | . . . . Robot Schematics Acquired . | . . . . Robots Built . | . . . . Authchips . | . . . . Time . | . . . . Total Robot Build Rating . | . . . . Part Schematics Acquired . | . . . . Parts Built . | . . . . Authchips . | . . . . Time . | . . . . Total Part Build Rating . | . . . . Parts Repaired . | . . . . Time . | . . . . Parts Recycled . | . . . . Recycled Matter . | . . . . Retrieved Matter . | . . . . Retrieved Components . | . . . . Parts Scanalyzed . | . . . . Part Schematics Acquired . | . . . . Parts Damaged . | . . . . Bothacking | -11 -10 -10 -9 ------------ Run | Yrd Mat Min Mat Used RIF Installer . | . . . . Robots Hacked . | . . . . Non-combat . | . . . . Combat . | . . . . Robot Hacks Applied . | . . . . Relay Couplers Released . | . . . . Fabnet Peak Effective % . | . . . . Robots Rewired . | . . . . Allies Hacked . | . . . . Hacks Repelled . | . . . . Allies | -11 -10 -10 -9 -------- Run | Yrd Mat Min Mat Total Allies . | . . . . Largest Group . | . . . . Highest-Rated Group . | . . . . Highest-Rated Ally . | . . . . Total Orders . | . . . . Ally Attacks . | . . . . Total Damage . | . . . . Kills . | . . . . Allies Corrupted . | . . . . Allies Melted . | . . . . Intel | -11 -10 -10 -9 ------- Run | Yrd Mat Min Mat Robot Analysis Total . | . . . . Derelict Logs Recovered . | . . . . Drone Launches . | . . . . Drone Recoveries . | . . . . Exploration | -11 -10 -10 -9 ------------- Run | Yrd Mat Min Mat Turns Passed 1510 | 363 127 184 836 Spaces Moved 851 | 181 65 115 490 Core 26 | 3 . . 23 Treads 7 | . . . 7 Legs 818 | 178 65 115 460 Wheels . | . . . . Hover . | . . . . Flight . | . . . . Fastest Speed 50 | 50 120 120 120 Average Speed 128 | 118 120 120 135 Slowest Speed 300 | 120 120 120 300 Overloaded Moves . | . . . . Propulsion Burnouts . | . . . . Robots Hopped . | . . . . Cave-ins Triggered . | . . . . Exploration Rate (%) 18 | 9 16 24 25 Regions Visited 3 Branch Regions 1 Pre-discovered Areas . | . . . . Known Exits Taken . | . . . . Unknown Exits Taken 3 | 1 1 1 . Scrap Searched 1 | . . 1 . Spaces Dug . | . . . . Terrain Destroyed . | . . . . Melee . | . . . . Projectile . | . . . . AOE . | . . . . Terrain Rammed . | . . . . Walls Destroyed . | . . . . Machines Disabled . | . . . . Actions | -11 -10 -10 -9 --------- Run | Yrd Mat Min Mat Total 1070 | 264 92 141 573 Wait 10 | . . . 10 Move 848 | 180 64 114 490 Hop . | . . . . Pick Up 8 | 1 . . 7 Fast Attach 18 | 6 . 1 11 Attach 5 | . . . 5 Detach 1 | . . . 1 Swap 5 | . 3 1 1 Drop 5 | . . . 5 Fire 125 | 77 25 23 . Melee 42 | . . . 42 Ram . | . . . . Kick 3 | . . 2 1 Crush . | . . . . Escape Stasis . | . . . . Rewire . | . . . . Trap . | . . . . Miscellaneous . | . . . . Route ------- -11/Scrapyard -10/Materials -10/Mines -9/Materials History --------- Turn | Location | Event 24 | -11/Scrapyard | Discovered new exit (range 16) 364 | -11/Scrapyard | Entered Materials 365 | -10/Materials | Build established: Mutant 419 | -10/Materials | Discovered new exit (range 13) 491 | -10/Materials | Entered Mines 550 | -10/Mines | Met a Derelict bent on vengeance 669 | -10/Mines | Discovered new exit (range 5) 675 | -10/Mines | Entered Materials 675 | -9/Materials | Evolved 2 slots: Utility x2 801 | -9/Materials | Core integrity fell below 50% 881 | -9/Materials | Lost 9 parts (2p4n2u1w) 1030 | -9/Materials | Core integrity fell below 20% 1410 | -9/Materials | Build established: Hacker-Mutant 1511 | -9/Materials | Destroyed by G-34 Mercenary with Small Laser Last Messages --------------- 01473_ Acquired Katana. 01476_ Great Maul follow-up attack on G-34 Mercenary. 01476_ G-34 Mercenary suffers critical hit (Smash). 01476_ Destroyed Ion Engine. 01476_ G-34 Mercenary system corrupted by crushing effect. 01476_ G-34 Mercenary destroyed. 01482_ Acquired 10 matter. 01483_ R-06 Scavenger collects Sml. Laser. 01483_ Sneak attack on R-06 Scavenger. 01483_ Destroyed Lgt. Ion Engine. 01483_ R-06 Scavenger destroyed. 01487_ Acquired Aluminum Leg. 01488_ Acquired 10 matter. 01491_ Acquired Ion Engine. 01493_ 6N DGA>B%ZCDZUF# 01493_ Acquired 10 matter. 01507_ G-34 Mercenary Aluminum Leg severed. Map ----- +----------------------------------------------------+ | ?????????# % #??# #????????????????? | | ?????????####+####### #??# #????????????????? | | ??????????# #??# #??# #????????????????? | | ??????????# "" #??# #??# #????????"???????? | | ??????????# T" #??# #### ###### ""???????? | | ??????????# "" #??# """??????? | | ??????????# #??# ????? | | ??????????# #??# ????? | | ??????????########??#######+#########???????????? | | ????????????????????????# % #????????????????? | | ????????????????????????# !#????????????????? | | ????????????????????????# #????????????????? | | ????????????????????????# #????????????????? | | ????????????????????????# #????????????????? | | ????????????????????????# | #????????????????? | | ????????????????????########+###????????????????? | | ????????????????????# # #??????????????????? | | ????????????????????# # #??????????????????? | | ????????????????????# # #??????????????????? | | ????????????????????# /# #########+#####????? | | ????????????????????# % #%! ???? | | ????????????????????# !%+%[ ???? | | ????????????????????# #%= ^ ???? | | ????????????????????# ####+####+#######????? | | ????????????????????# = #???? ??????????????? | | ????????????????????# g@ #??????""????????????? | | ????????????????????# g #???????"????????????? | | ????????????????????# #????????????????????? | | ????????????????????# #????????????????????? | | ????????????????????#####+##????????????????????? | | ????????????????????????# ??????????????????????? | | ????????????????????????# ??????????????????????? | | ????????????????????????# ??????????????????????? | | ????????????????????????# ??????????????????????? | | ???????????????????????? ??????????????????????? | | ???????????????????????? ??????????????????????? | | ????????????????????????##??????????????????????? | | ????????????????????????????????????????????????? | | ????????????????????????????????????????????????? | | ????????????????????????????????????????????????? | | ????????????????????????????????????????????????? | | ????????????????????????????????????????????????? | | ????????????????????????????????????????????????? | | ????????????????????????????????????????????????? | | ????????????????????????????????????????????????? | | ????????????????????????????????????????????????? | | ????????????????????????????????????????????????? | | ????????????????????????????????????????????????? | | ????????????????????????????????????????????????? | | ????????????????????????????????????????????????? | +----------------------------------------------------+ Best States ------------- Heat Dissipation 28 Energy Generation 10 Energy Capacity 250 Matter Stores 300 Matter Capacity 300 Sight Range 16 Terrain Scan Range 16 Terrain Scan Density 10 Evasion (%) 55 Recoil Reduction 1 Defensive Hacking 20 Item Schematics ----------------- None Robot Schematics ------------------ None Fabricated ------------ Nothing Alien Tech Used ----------------- None Achievements -------------- Use The Force Challenges ------------ None Game ------ Seed GrapheneVortexReactor Manual? 0 Play Time 00:12:45 Cumulative 21.5 hours Start 2024.04.05 @ 16:24:33 End 2024.04.05 @ 16:41:03 Sessions 1 Manual Loads 0 Difficulty Rogue Special Mode None Game No. 61 Rogue 59 Adventurer 2 Explorer 0 Win Type - Total 0 Types 0/0/0/0/0/0/0/0/0 Lore% 18 Gallery% 24 Achievement% 21 Wizard Run 0 Options --------- Layout 1 ASCII 0 Keyboard 1 Movement Arrows Keybinds 0 Fullscreen 2 Font 24/Smallcaps Map View 50x35 Zoom Use 0% Tactical HUD 1 Map Filters NONE Filters NONE Steam 1 RUN: 6ed9fbdb-5318-4e76-bc4a-2d97da8557fa